Cogmind - Beta 10.2 @@@ ROGUE MODE // 2020.11.24 @ 09:21:25 // Halloween2020/ForbiddenLore Player: Benjamin Result: Destroyed by S-10 Pest with Light Assault Rifle Performance ------------- Evolutions (0) 0 Regions Visited (2) 400 Robots Destroyed (12) 60 Value Destroyed (345) 345 Prototype IDs (0) 0 Alien Tech Used (0) 0 Bonus (0) 0 TOTAL SCORE: 805 Bonus ------- None Cogmind --------- Core Integrity 0/250 Matter 241/300 Energy 98/100 System Corruption 5% Temperature Cool (0) Movement Core (50) Location -10/Mines Parts ------- > --- POWER (1) -------- (None) > --- PROPULSION (2) --- (None) > --- UTILITY (2) ------ (None) > --- WEAPON (2) ------- (None) > --- INVENTORY (4) ---- Aluminum Leg Sensor Array Light Armor Plating Light Assault Rifle Peak State ------------ > --- POWER ------------ Light Ion Engine > --- PROPULSION ------- Aluminum Leg Aluminum Leg > --- UTILITY ---------- Large Storage Unit Improved Terrain Scanner > --- WEAPON ----------- Light Cannon Light Cannon > --- INVENTORY -------- Ion Engine Ion Engine Aluminum Leg Aluminum Leg Large Storage Unit Sensor Array Light Armor Plating Light Assault Rifle Light Cannon Grenade Launcher [Rating: 9] Favorites ----------- Power Ion Engine Engine Ion Engine Propulsion Aluminum Leg Leg Aluminum Leg Utility Improved Terrain Scanner Device Improved Terrain Scanner Storage Large Storage Unit Weapon Light Cannon Energy Gun EM Pulse Gun Ballistic Gun Light Assault Rifle Ballistic Cannon Light Cannon Build | -11 -10 -10 ------- Run | Scr Mat Min Slots Evolved . | . . . Power . | . . . Propulsion . | . . . Utility . | . . . Weapon . | . . . Parts Attached 17 | 7 10 . Power 3 | 1 2 . Engine 3 | 1 2 . Core . | . . . Reactor . | . . . Propulsion 4 | 2 2 . Treads . | . . . Leg 4 | 2 2 . Wheel . | . . . Hover . | . . . Flight . | . . . Utility 5 | 2 3 . Device 3 | 1 2 . Storage 2 | 1 1 . Processor . | . . . Hackware . | . . . Protection . | . . . Artifact . | . . . Weapon 5 | 2 3 . Energy Gun 1 | 1 . . Energy Cannon . | . . . Ballistic Gun 1 | 1 . . Ballistic Cannon 3 | . 3 . Launcher . | . . . Special Weapon . | . . . Impact Weapon . | . . . Slashing Weapon . | . . . Piercing Weapon . | . . . Special Melee Weapon . | . . . Unidentified Prototypes . | . . . Parts Lost 6 | . 2 4 Power . | . . . Propulsion 2 | . . 2 Utility 1 | . . 1 Weapon 3 | . 2 1 Highest Loss Streak 4 | . 1 4 Average Slot Usage (%) 94 | . 99 70 Engine 13 | . 14 10 Leg 26 | . 28 21 Device 13 | . 14 8 Storage 13 | . 14 8 Ballistic Gun 8 | . 10 . Ballistic Cannon 17 | . 17 20 Naked Turns 39 | . . 39 Heaviest Build 28 | 13 28 28 Greatest Support 20 | 20 20 20 Greatest Overweight (x) 3 | 3 1 1 Average Overweight (x) . | . . . Largest Inventory Capacity 10 | 6 10 10 Average Capacity 8 | 5 8 7 Most Carried 10 | 2 10 9 Average Carried 6 | 1 7 7 Final Capacity 10 | 6 10 4 Final Carried 9 | 2 9 4 Class Distribution -------------------- 100% | Mutant Dominant Class ---------------- Mutant | -10/Materials Mutant | -10/Mines Resources | -11 -10 -10 ----------- Run | Scr Mat Min Matter Collected 528 | 239 233 56 Remotely . | . . . Salvage Created 284 | 20 264 . Parts 26 | 4 22 . Haulers Intercepted . | . . . Recyclers Shooed . | . . . Parts Field Recycled . | . . . Retrieved Matter . | . . . Parts Self-Destructed . | . . . Prevented . | . . . Kills | -11 -10 -10 ------- Run | Scr Mat Min Combat Hostiles Destroyed 11 | . 11 . Guns 2 | . 2 . Cannons 9 | . 9 . Classes Destroyed 3 | 1 2 . Tunneler 1 | 1 . . Swarmer 3 | . 3 . Grunt 8 | . 8 . Best Kill Streak 5 | 1 5 . Combat Bots Only 5 | . 5 . Max Kills in Single Turn 1 | 1 1 . Gunslinging . | . . . Exploded . | . . . Melee . | . . . Uniques/NPCs Destroyed . | . . . Combat | -11 -10 -10 -------- Run | Scr Mat Min Damage Taken 1016 | . 518 498 Core 254 | . 80 174 Absorbed by Shields . | . . . Core Remaining (%) 100 | 100 . . Volleys Fired 42 | 5 36 1 Largest 2 | 2 2 2 Hottest 70 | 60 70 70 Shots Fired 84 | 10 72 2 Gun 31 | 10 21 . Cannon 53 | . 51 2 Launcher . | . . . Special . | . . . Kinetic 79 | 5 72 2 Thermal . | . . . Explosive . | . . . Electromagnetic 5 | 5 . . Robot Hit Streak 7 | 2 7 . Robot Miss Streak 4 | 4 3 2 Penetration Max . | . . . Secondary Targets . | . . . Shots Hit Robots 51 | 3 48 . Core Hits 17 | 1 16 . Critical Hits . | . . . Critical Kills . | . . . Critical Parts Destroyed . | . . . Melee Attacks . | . . . Impact . | . . . Slashing . | . . . Piercing . | . . . Sneak Attacks . | . . . Combat Hostiles . | . . . Follow-up Attacks . | . . . Damage Inflicted 702 | 43 659 . Guns 171 | 43 128 . Cannons 531 | . 531 . Explosions . | . . . Melee . | . . . Ramming . | . . . Kinetic 665 | 6 659 . Thermal . | . . . Explosive . | . . . Electromagnetic 37 | 37 . . Impact . | . . . Slashing . | . . . Piercing . | . . . Highest Corruption 5 | . . 5 Average Corruption 5 | . . 5 Corruption Purged . | . . . Effects 1 | . . 1 Matter Fused 1 | . . 1 Overload Shots . | . . . Overflow Damage . | . . . Projectiles . | . . . Explosions . | . . . Melee . | . . . Knockbacks 10 | . 10 . Impact . | . . . Kinetic 10 | . 10 . Secondary . | . . . Self-Inflicted Damage . | . . . Shots . | . . . Rammed . | . . . Targets Rammed . | . . . Kicked . | . . . Crushed . | . . . Highest Temperature 103 | 40 103 51 Average Temperature 28 | 16 30 21 Received Heat Transfer 413 | . 273 140 Siege Activations . | . . . Robots Corrupted . | . . . Combat Hostiles . | . . . Parts Fried . | . . . Impact Corruptions . | . . . Robots Melted . | . . . Combat Hostiles . | . . . Parts Melted . | . . . Heat Transferred . | . . . Parts Sabotaged . | . . . Parts Stolen . | . . . Parts Stripped . | . . . Power Chain Reactions . | . . . Missiles Intercepted . | . . . Alert | -11 -10 -10 ------- Run | Scr Mat Min Peak Influence 232 | 5 232 31 Initial 31 | . 3 31 Average 69 | 1 86 21 Maximum Alert Level 1 | . 1 . Low Security (%) 90 | 100 87 100 Level 1 9 | . 12 . Level 2 . | . . . Level 3 . | . . . Level 4 . | . . . Level 5 . | . . . High Security . | . . . Max Security . | . . . Squads Dispatched 3 | . 3 . Investigation 1 | . 1 . Extermination . | . . . Reinforcement 2 | . 2 . Assault . | . . . Garrison . | . . . Intercept . | . . . Construction Impeded . | . . . Haulers Reinforced . | . . . Stealth | -11 -10 -10 --------- Run | Scr Mat Min Distress Signals 2 | . 1 1 Communications Jammed . | . . . Distress Signals . | . . . Times Spotted 40 | . 19 21 Peak Tracking Total 15 | . 5 15 Tactical Retreats 4 | . . 4 Traps | -11 -10 -10 ------- Run | Scr Mat Min Traps Triggered 1 | . 1 . Indirectly . | . . . Trap Hack Attempts . | . . . Triggered . | . . . Disarmed . | . . . Reprogrammed . | . . . Reused . | . . . Traps Extracted . | . . . Installed . | . . . Triggered . | . . . Machines | -11 -10 -10 ---------- Run | Scr Mat Min Machines Disabled 1 | . 1 . Max in Single Turn 1 | . 1 . Machines Sabotaged . | . . . Garrisons Compromised . | . . . Overloaded Fab Kills . | . . . Fab Network Shutdowns . | . . . Hacking | -11 -10 -10 --------- Run | Scr Mat Min Machines Accessed 4 | . 4 . Terminals 4 | . 4 . Fabricators . | . . . Repair Stations . | . . . Recycling Units . | . . . Scanalyzers . | . . . Garrison Access . | . . . Total Hacks 9 | . 9 . Successful 6 | . 6 . Failed 3 | . 3 . Catastrophic . | . . . Database Lockouts . | . . . Manual 5 | . 5 . Terminals 9 | . 9 . Fabricators . | . . . Repair Stations . | . . . Recycling Units . | . . . Scanalyzers . | . . . Garrison Access . | . . . Terminal Hacks 1 | . 1 . Branch Access Points 1 | . 1 . Fabricator Hacks . | . . . Repair Station Hacks . | . . . Recycling Unit Hacks . | . . . Scanalyzer . | . . . Garrison Access Hacks . | . . . Unauthorized Hacks 5 | . 5 . Terminals 5 | . 5 . Track 2 | . 2 . Botnet 3 | . 3 . Fabricators . | . . . Repair Stations . | . . . Recycling Units . | . . . Scanalyzers . | . . . Garrison Access . | . . . Data Cores Recovered . | . . . Used . | . . . Hacking Detections 2 | . 2 . Full Trace Events . | . . . Feedback Events . | . . . Feedback Blocked . | . . . Robot Schematics Acquired . | . . . Robots Built . | . . . Matter . | . . . Time . | . . . Total Robot Build Rating . | . . . Part Schematics Acquired . | . . . Parts Built . | . . . Matter . | . . . Time . | . . . Total Part Build Rating . | . . . Parts Repaired . | . . . Time . | . . . Parts Recycled . | . . . Recycled Matter . | . . . Retrieved Matter . | . . . Retrieved Components . | . . . Parts Scanalyzed . | . . . Part Schematics Acquired . | . . . Parts Damaged . | . . . Bothacking | -11 -10 -10 ------------ Run | Scr Mat Min Used RIF Installer . | . . . Robots Hacked . | . . . Non-combat . | . . . Combat . | . . . Robot Hacks Applied . | . . . Relay Couplers Released . | . . . Robots Rewired . | . . . Allies Hacked . | . . . Hacks Repelled . | . . . Allies | -11 -10 -10 -------- Run | Scr Mat Min Total Allies 3 | . . 3 Largest Group 2 | . . 2 Highest-Rated Group 23 | . . 23 Highest-Rated Ally 16 | . . 16 Total Orders . | . . . Ally Attacks 6 | . . 6 Total Damage 41 | . . 41 Kills . | . . . Allies Corrupted . | . . . Allies Melted . | . . . Intel | -11 -10 -10 ------- Run | Scr Mat Min Robot Analysis Total . | . . . Derelict Logs Recovered . | . . . Drone Launches . | . . . Drone Recoveries . | . . . Exploration | -11 -10 -10 ------------- Run | Scr Mat Min Turns Passed 1059 | 98 806 155 Spaces Moved 663 | 56 452 155 Core 89 | 11 . 78 Treads . | . . . Legs 574 | 45 452 77 Wheels . | . . . Hover . | . . . Flight . | . . . Fastest Speed 50 | 50 120 50 Average Speed 127 | 128 138 97 Slowest Speed 200 | 200 150 150 Overloaded Moves . | . . . Propulsion Burnouts . | . . . Robots Hopped . | . . . Cave-ins Triggered . | . . . Exploration Rate (%) 40 | 4 64 54 Regions Visited 2 Branch Regions 1 Pre-discovered Areas . | . . . Known Exits Taken 1 | . 1 . Unknown Exits Taken 1 | 1 . . Scrap Searched 1 | . . 1 Spaces Dug . | . . . Terrain Destroyed . | . . . Melee . | . . . Projectile . | . . . AOE . | . . . Terrain Rammed . | . . . Walls Destroyed . | . . . Machines Disabled . | . . . Actions | -11 -10 -10 --------- Run | Scr Mat Min Total 796 | 69 568 159 Wait 55 | . 55 . Move 661 | 55 451 155 Hop . | . . . Pick Up 10 | 2 8 . Fast Attach 8 | 7 1 . Attach 4 | . 4 . Detach 3 | . 3 . Swap 5 | . 5 . Drop 8 | . 5 3 Fire 42 | 5 36 1 Melee . | . . . Ram . | . . . Kick . | . . . Crush . | . . . Escape Stasis . | . . . Rewire . | . . . Trap . | . . . Miscellaneous . | . . . Route ------- -11/Scrapyard -10/Materials (discovered 2 exits: [*Mat] / *Min) -10/Mines History --------- Turn | Location | Event 34 | -11/Scrapyard | Discovered new exit (range 14) 99 | -11/Scrapyard | Entered Materials 307 | -10/Materials | Build established: Mutant 435 | -10/Materials | Discovered new exit (range 13) 446 | -10/Materials | Identified exit to Mines 576 | -10/Materials | Discovered new exit (range 16) 905 | -10/Materials | Entered Mines 966 | -10/Mines | Assembled infested the area 971 | -10/Mines | Assisted by a Guerilla fighting off Assembled 1015 | -10/Mines | Assisted by bots powering up and referring to "LRC-V3" 1021 | -10/Mines | Core integrity fell below 50% 1024 | -10/Mines | Core integrity fell below 20% 1051 | -10/Mines | Lost 4 parts (2n1u1w) 1060 | -10/Mines | Destroyed by S-10 Pest with Light Assault Rifle Last Messages --------------- 01018_ Trooper 1b destroyed. 01018_ Lgt. Cannon destroyed. 01020_ Knocked back. 01020_ Aluminum Leg destroyed. 01020_ as-05905 destroyed. 01021_ Dropped Lgt. Cannon. 01021_ Dropped Ion Engine. 01022_ Acquired 31 matter. 01023_ Mercenary 1a destroyed. 01024_ System corrupted: Matter fused (-9). 01024_ The unstable cave ceiling collapses. 01030_ Searching scrap... 01030_ Found 25 Matter. 01030_ Found Med. Matter Pod. 01030_ Found Grenade Launcher. 01030_ Found Flight Unit. 01030_ Found 33 Matter. 01030_ U-05 Engineer lays Concrete. 01030_ Acquired 25 matter. 01047_ K-01 Serf collects debris. Map ----- +----------------------------------------------------+ | ?????#?????##?#?# !!* #??????# #? | | ????????????????# *]=% #?????# #? | | ????????????#?####### *%! #????# ## | | ??????????????# # # # = #????## # | | ???????????#### ## # #%## ##?????## # | | ????######## ###### #######"#?###???????# | | ????# #????####???#?? #???????????# | | ????# #####?????????????? #??????????## | | ????# #????????#?????????#??????????## | | ????# #????????????????????????????## | | ????# #??? ?????? #??????????????## # | | ?#??# """ #?????????? ?????????????## # | | ????# """ #??##???#?# ?????????????# # | | ????# """ #??????? ## ?????????????# # | | ????# #???????u# ?????????????# ## | | ????##########??????## #####???????## ###? | | ???????????????????## ??###### ##??? | | ???????????????????? ? ### ##??? | | ????????????????????? #????# #??? | | ????????????????????? ##???# #??? | | ?????????????????????? ##??#### ##?? | | ??????????? ???????? ##????# #?? | | ???????????? ###### ##???## #?? | | ???????????????? #????## #?? | | ???????????????????? #??#### ##?? | | ???????????????????????# @ #?## ##??? | | ???????????????????????## ##?# ###???? | | ????????????????????????# ##??# ##?????? | | ????????????????????????# ##???## #??????? | | ????????????????????????# #????## ##??????? | | ????????????????????????# #???## #???????? | | ????????????????????????# #??## #???????? | | ????????????????????????#s #?## ##???????? | | ????????????????????????# s#?# ##????????? | | ????????????????????????# s### #?????????? | | ????????????????????????# #?????????? | | ????????????????????????####### #?????????? | | ??????????????????????????????###### ##?????????? | | ????????????????????????????????????###??????????? | | ?????????????????????????????????????????????????? | | | | | | | | | | | | | | | | | | | | | +----------------------------------------------------+ Best States ------------- Heat Dissipation 25 Energy Generation 10 Energy Capacity 250 Matter Stores 264 Matter Capacity 300 Sight Range 16 Terrain Scan Range 16 Terrain Scan Density 10 Evasion (%) 50 Item Schematics ----------------- None Robot Schematics ------------------ None Fabricated ------------ Nothing Alien Tech Used ----------------- None Achievements -------------- None Challenges ------------ None Game ------ Seed FissionModifiedStabilizer Manual? 0 Play Time 00:13:39 Cumulative 27.1 hours Start 2020.11.24 @ 09:07:26 End 2020.11.24 @ 09:21:25 Sessions 1 Manual Loads 0 Difficulty Rogue Special Mode Halloween2020/ForbiddenLore Game No. 35 Rogue 35 Adventurer 0 Explorer 0 Win Type - Total 1 Types 1/0/0/0/0/0/0/0/0 Lore% 30 Gallery% 39 Achievement% 35 Wizard Run 0 Options --------- ASCII 0 Keyboard 1 Movement Vi Keybinds 0 Fullscreen 2 Font 14/Smallcaps Map View 84x54 Tactical HUD 1 Map Filters NONE Filters NONE Steam 0 RUN: b0b84c54-cd08-486f-a59b-75585084cd61